[Event "32nd NATO Chess Championship"]
[Site "Tartu, Estonia"]
[Date "2022.06.28"]
[Round "3.35"]
[White "Steffers, Hendrik"]
[Black "Heran-Boily, Samuel"]
[Result "0-1"]
[TimeControl "90 min + 30 sec increment from move one"]
[WhiteFideId "1010743"]
[BlackFideId "1554565"]
[WhiteElo "1838"]
[BlackElo "1871"]

1. d4 {[%clk 01:30:43]} {[%emt 00:00:17]} d5 {[%clk 01:30:49]} {[%emt
00:00:10]} 2. Nf3 {[%clk 01:31:01]} {[%emt 00:00:11]} Nf6 {[%clk 01:31:11]}
{[%emt 00:00:10]} 3. e3 {[%clk 01:31:15]} {[%emt 00:00:15]} e6 {[%clk
01:31:29]} {[%emt 00:00:12]} 4. Bd3 {[%clk 01:31:20]} {[%emt 00:00:25]} Be7
{[%clk 01:31:22]} {[%emt 00:00:37]} 5. Nbd2 {[%clk 01:31:10]} {[%emt 00:00:39]}
O-O {[%clk 01:31:38]} {[%emt 00:00:15]} 6. O-O {[%clk 01:31:05]} {[%emt
00:00:33]} b6 {[%clk 01:32:01]} {[%emt 00:00:10]} 7. Ne5 {[%clk 01:29:57]}
{[%emt 00:01:37]} Bb7 {[%clk 01:32:18]} {[%emt 00:00:12]} 8. f4 {[%clk
01:27:31]} {[%emt 00:02:56]} c5 {[%clk 01:26:15]} {[%emt 00:06:34]} 9. b3
{[%clk 01:25:35]} {[%emt 00:02:25]} Nc6 {[%clk 01:25:32]} {[%emt 00:01:14]} 10.
Nxc6 {[%clk 01:22:54]} {[%emt 00:03:11]} Bxc6 {[%clk 01:25:48]} {[%emt
00:00:13]} 11. Bb2 {[%clk 01:21:22]} {[%emt 00:02:03]} b5 {[%clk 01:20:16]}
{[%emt 00:06:02]} 12. c3 {[%clk 01:13:10]} {[%emt 00:08:42]} c4 {[%clk
01:16:14]} {[%emt 00:04:32]} 13. Bc2 {[%clk 01:12:43]} {[%emt 00:00:56]} a5
{[%clk 01:13:05]} {[%emt 00:03:39]} 14. bxc4 {[%clk 01:03:00]} {[%emt
00:10:13]} bxc4 {[%clk 01:09:15]} {[%emt 00:04:20]} 15. a4 {[%clk 01:02:41]}
{[%emt 00:00:49]} Rb8 {[%clk 01:08:48]} {[%emt 00:00:57]} 16. Ba3 {[%clk
00:59:57]} {[%emt 00:03:14]} Bxa3 {[%clk 01:08:42]} {[%emt 00:00:36]} 17. Rxa3
{[%clk 01:00:24]} {[%emt 00:00:02]} Nd7 {[%clk 01:03:08]} {[%emt 00:06:04]} 18.
e4 {[%clk 00:54:41]} {[%emt 00:06:13]} f5 {[%clk 01:01:38]} {[%emt 00:02:00]}
19. exf5 {[%clk 00:47:29]} {[%emt 00:07:42]} exf5 {[%clk 01:02:01]} {[%emt
00:00:08]} 20. Nf3 {[%clk 00:46:51]} {[%emt 00:01:07]} Qe7 {[%clk 00:57:15]}
{[%emt 00:05:15]} 21. Qc1 {[%clk 00:46:23]} {[%emt 00:00:58]} g6 {[%clk
00:56:49]} {[%emt 00:00:57]} 22. Re1 {[%clk 00:43:47]} {[%emt 00:03:06]} Qd6
{[%clk 00:56:23]} {[%emt 00:00:56]} 23. Ne5 {[%clk 00:43:16]} {[%emt 00:01:01]}
Nf6 {[%clk 00:55:37]} {[%emt 00:01:17]} 24. Ra1 {[%clk 00:30:54]} {[%emt
00:12:50]} Rb7 {[%clk 00:48:56]} {[%emt 00:07:13]} 25. Qa3 {[%clk 00:22:19]}
{[%emt 00:09:05]} Qxa3 {[%clk 00:49:07]} {[%emt 00:00:18]} 26. Rxa3 {[%clk
00:22:48]} {[%emt 00:00:02]} Be8 {[%clk 00:49:09]} {[%emt 00:00:28]} 27. Rb1
{[%clk 00:20:20]} {[%emt 00:02:57]} Rxb1+ {[%clk 00:48:44]} {[%emt 00:00:55]}
28. Bxb1 {[%clk 00:20:49]} {[%emt 00:00:01]} Ne4 {[%clk 00:48:50]} {[%emt
00:00:24]} 29. Bxe4 {[%clk 00:20:22]} {[%emt 00:00:57]} fxe4 {[%clk 00:48:46]}
{[%emt 00:00:35]} 30. g3 {[%clk 00:20:37]} {[%emt 00:00:15]} Rf6 {[%clk
00:48:40]} {[%emt 00:00:36]} 31. Ra1 {[%clk 00:16:34]} {[%emt 00:04:32]} Rb6
{[%clk 00:48:56]} {[%emt 00:00:14]} 32. Ng4 {[%clk 00:16:52]} {[%emt 00:00:12]}
Kg7 {[%clk 00:47:32]} {[%emt 00:01:54]} 33. Ne3 {[%clk 00:17:06]} {[%emt
00:00:17]} Bc6 {[%clk 00:46:50]} {[%emt 00:01:11]} 34. Nd1 {[%clk 00:16:56]}
{[%emt 00:00:40]} Rb3 {[%clk 00:46:06]} {[%emt 00:01:14]} 35. Kf2 {[%clk
00:17:04]} {[%emt 00:00:22]} Bd7 {[%clk 00:45:24]} {[%emt 00:01:13]} 36. Ne3
{[%clk 00:16:12]} {[%emt 00:01:21]} Bc6 {[%clk 00:40:02]} {[%emt 00:05:51]} 37.
Nd1 {[%clk 00:16:41]} {[%emt 00:00:02]} Kf6 {[%clk 00:39:50]} {[%emt 00:00:42]}
38. h3 {[%clk 00:16:31]} {[%emt 00:00:40]} h5 {[%clk 00:38:40]} {[%emt
00:01:40]} 39. g4 {[%clk 00:16:30]} {[%emt 00:00:31]} Bd7 {[%clk 00:36:30]}
{[%emt 00:02:40]} 40. Kg3 {[%clk 00:16:24]} {[%emt 00:00:36]} Be6 {[%clk
00:35:59]} {[%emt 00:01:01]} 41. Kh4 {[%clk 00:16:39]} {[%emt 00:00:14]} Rb8
{[%clk 00:34:35]} {[%emt 00:01:55]} 42. Kg3 {[%clk 00:16:15]} {[%emt 00:00:54]}
Ke7 {[%clk 00:34:03]} {[%emt 00:01:02]} 43. Ne3 {[%clk 00:16:25]} {[%emt
00:00:20]} Rb3 {[%clk 00:33:44]} {[%emt 00:00:49]} 44. Nd1 {[%clk 00:16:54]}
{[%emt 00:00:02]} Kd6 {[%clk 00:32:58]} {[%emt 00:01:15]} 45. Kh4 {[%clk
00:16:13]} {[%emt 00:01:10]} Bf7 {[%clk 00:32:16]} {[%emt 00:01:13]} 46. Kg5
{[%clk 00:16:27]} {[%emt 00:00:16]} hxg4 {[%clk 00:25:01]} {[%emt 00:07:45]} 47.
hxg4 {[%clk 00:16:56]} {[%emt 00:00:02]} Be8 {[%clk 00:24:35]} {[%emt
00:00:55]} 48. Kf6 {[%clk 00:16:44]} {[%emt 00:00:41]} Rb7 {[%clk 00:23:43]}
{[%emt 00:01:22]} 49. Kg5 {[%clk 00:17:02]} {[%emt 00:00:12]} Bd7 {[%clk
00:21:26]} {[%emt 00:02:47]} 50. Ne3 {[%clk 00:17:17]} {[%emt 00:00:16]} Rb3
{[%clk 00:20:43]} {[%emt 00:01:13]} 51. Nd1 {[%clk 00:17:45]} {[%emt 00:00:02]}
Rb8 {[%clk 00:21:03]} {[%emt 00:00:10]} 52. Ne3 {[%clk 00:18:03]} {[%emt
00:00:12]} Rb3 {[%clk 00:17:19]} {[%emt 00:04:15]} 53. Nd1 {[%clk 00:18:31]}
{[%emt 00:00:01]} Ke7 {[%clk 00:17:18]} {[%emt 00:00:31]} 54. Kh4 {[%clk
00:18:22]} {[%emt 00:00:38]} Kf7 {[%clk 00:16:47]} {[%emt 00:01:02]} 55. Kg5
{[%clk 00:18:30]} {[%emt 00:00:22]} Be6 {[%clk 00:16:46]} {[%emt 00:00:31]} 56.
Kh4 {[%clk 00:18:41]} {[%emt 00:00:18]} Kf6 {[%clk 00:16:43]} {[%emt 00:00:34]}
57. Kg3 {[%clk 00:18:23]} {[%emt 00:00:48]} Bd7 {[%clk 00:16:59]} {[%emt
00:00:14]} 58. Kh4 {[%clk 00:18:32]} {[%emt 00:00:21]} Bc6 {[%clk 00:17:17]}
{[%emt 00:00:12]} 59. Kg3 {[%clk 00:18:27]} {[%emt 00:00:34]} Be8 {[%clk
00:17:02]} {[%emt 00:00:46]} 60. Kh4 {[%clk 00:18:44]} {[%emt 00:00:13]} Bd7
{[%clk 00:17:21]} {[%emt 00:00:12]} 61. Ne3 {[%clk 00:18:48]} {[%emt 00:00:25]}
Bc6 {[%clk 00:16:43]} {[%emt 00:01:08]} 62. Nd1 {[%clk 00:18:56]} {[%emt
00:00:22]} Rb8 {[%clk 00:15:03]} {[%emt 00:02:09]} 63. Ne3 {[%clk 00:19:10]}
{[%emt 00:00:16]} Rb2 {[%clk 00:15:10]} {[%emt 00:00:24]} 64. Nd1 {[%clk
00:18:08]} {[%emt 00:01:31]} Rd2 {[%clk 00:14:26]} {[%emt 00:01:15]} 65. Ne3
{[%clk 00:16:56]} {[%emt 00:01:42]} Rh2+ {[%clk 00:13:10]} {[%emt 00:01:46]} 66.
Kg3 {[%clk 00:17:10]} {[%emt 00:00:16]} Re2 {[%clk 00:13:34]} {[%emt 00:00:05]}
67. Nd1 {[%clk 00:16:48]} {[%emt 00:00:53]} e3 {[%clk 00:13:17]} {[%emt
00:00:46]} 68. g5+ {[%clk 00:13:23]} {[%emt 00:03:56]} Ke7 {[%clk 00:12:41]}
{[%emt 00:01:05]} 69. Rb1 {[%clk 00:13:22]} {[%emt 00:00:31]} Re1 {[%clk
00:11:46]} {[%emt 00:01:25]} 70. Rb6 {[%clk 00:13:43]} {[%emt 00:00:09]} Rxd1
{[%clk 00:11:57]} {[%emt 00:00:20]} 71. Kf3 {[%clk 00:13:54]} {[%emt 00:00:19]}
Bxa4 {[%clk 00:10:09]} {[%emt 00:02:18]} 72. Kxe3 {[%clk 00:13:19]} {[%emt
00:01:05]} Rd3+ {[%clk 00:10:17]} {[%emt 00:00:22]} 73. Kf2 {[%clk 00:13:14]}
{[%emt 00:00:33]} Rxc3 {[%clk 00:10:08]} {[%emt 00:00:40]} 74. Rxg6 {[%clk
00:13:28]} {[%emt 00:00:16]} Bc2 {[%clk 00:09:33]} {[%emt 00:01:06]} 75. Ra6
{[%clk 00:13:28]} {[%emt 00:00:30]} a4 {[%clk 00:09:29]} {[%emt 00:00:34]} 76.
Ra7+ {[%clk 00:12:41]} {[%emt 00:01:17]} Ke6 {[%clk 00:09:08]} {[%emt
00:00:50]} 77. Ra6+ {[%clk 00:13:01]} {[%emt 00:00:12]} Kd7 {[%clk 00:07:19]}
{[%emt 00:02:19]} 78. g6 {[%clk 00:12:23]} {[%emt 00:01:07]} Ke7 {[%clk
00:06:39]} {[%emt 00:01:10]} 79. Ra7+ {[%clk 00:11:39]} {[%emt 00:01:14]} Kf6
{[%clk 00:05:16]} {[%emt 00:01:53]} 80. g7 {[%clk 00:12:07]} {[%emt 00:00:02]}
Bh7 {[%clk 00:05:38]} {[%emt 00:00:07]} 81. Rxa4 {[%clk 00:12:07]} {[%emt
00:00:31]} Kxg7 {[%clk 00:05:57]} {[%emt 00:00:11]} 82. Ra6 {[%clk 00:12:17]}
{[%emt 00:00:20]} Be4 {[%clk 00:06:11]} {[%emt 00:00:15]} 83. Rc6 {[%clk
00:12:27]} {[%emt 00:00:20]} Rf3+ {[%clk 00:06:25]} {[%emt 00:00:15]} 84. Ke2
{[%clk 00:12:51]} {[%emt 00:00:07]} Rxf4 {[%clk 00:06:44]} {[%emt 00:00:11]}
0-1

[Event "32nd NATO Chess Championship"]
[Site "Tartu, Estonia"]
[Date "2022.06.28"]
[Round "3.37"]
[White "Voroblievas, Arturas"]
[Black "Ntalampiras, Spyros"]
[Result "1-0"]
[TimeControl "90 min + 30 sec increment from move one"]
[WhiteFideId "12803430"]
[BlackFideId "4227778"]
[WhiteElo "1740"]
[BlackElo "1815"]

1. e4 {[%clk 01:30:58]} c5 {[%clk 01:30:54]} {[%emt 00:00:07]} 2. Nf3 {[%clk
01:31:24]} {[%emt 00:00:05]} Nc6 {[%clk 01:31:19]} {[%emt 00:00:05]} 3. d4
{[%clk 01:31:46]} {[%emt 00:00:07]} cxd4 {[%clk 01:31:46]} {[%emt 00:00:03]} 4.
Nxd4 {[%clk 01:32:11]} {[%emt 00:00:05]} Nf6 {[%clk 01:32:06]} {[%emt
00:00:10]} 5. Nc3 {[%clk 01:32:36]} {[%emt 00:00:06]} g6 {[%clk 01:32:16]}
{[%emt 00:00:19]} 6. Be3 {[%clk 01:31:23]} {[%emt 00:01:43]} Bg7 {[%clk
01:32:34]} {[%emt 00:00:12]} 7. Bc4 {[%clk 01:30:21]} {[%emt 00:01:31]} O-O
{[%clk 01:32:45]} {[%emt 00:00:19]} 8. O-O {[%clk 01:30:24]} {[%emt 00:00:28]}
d6 {[%clk 01:31:11]} {[%emt 00:02:04]} 9. h3 {[%clk 01:30:41]} {[%emt
00:00:14]} a6 {[%clk 01:30:43]} {[%emt 00:00:57]} 10. a3 {[%clk 01:28:14]}
{[%emt 00:02:57]} Bd7 {[%clk 01:29:01]} {[%emt 00:02:12]} 11. Bb3 {[%clk
01:28:06]} {[%emt 00:00:38]} Rc8 {[%clk 01:25:48]} {[%emt 00:03:43]} 12. Qd2
{[%clk 01:27:44]} {[%emt 00:00:52]} Na5 {[%clk 01:19:53]} {[%emt 00:06:25]} 13.
Ba2 {[%clk 01:27:40]} {[%emt 00:00:33]} Nc4 {[%clk 01:19:28]} {[%emt 00:00:56]}
14. Bxc4 {[%clk 01:28:02]} {[%emt 00:00:08]} Rxc4 {[%clk 01:19:54]} {[%emt
00:00:04]} 15. Rad1 {[%clk 01:28:16]} {[%emt 00:00:15]} Qc8 {[%clk 01:18:41]}
{[%emt 00:01:44]} 16. Qe2 {[%clk 01:16:34]} {[%emt 00:12:12]} Rd8 {[%clk
01:11:51]} {[%emt 00:07:19]} 17. f4 {[%clk 01:10:45]} {[%emt 00:06:19]} e5
{[%clk 01:02:16]} {[%emt 00:10:06]} 18. fxe5 {[%clk 01:09:01]} {[%emt
00:02:14]} dxe5 {[%clk 01:02:35]} {[%emt 00:00:11]} 19. Nb3 {[%clk 01:05:12]}
{[%emt 00:04:19]} Nxe4 {[%clk 00:46:59]} {[%emt 00:16:06]} 20. Bb6 {[%clk
01:00:04]} {[%emt 00:05:37]} Nxc3 {[%clk 00:44:23]} {[%emt 00:03:07]} 21. bxc3
{[%clk 01:00:11]} {[%emt 00:00:23]} Re8 {[%clk 00:42:31]} {[%emt 00:02:21]} 22.
Rxd7 {[%clk 00:58:51]} {[%emt 00:01:49]} Qxd7 {[%clk 00:36:34]} {[%emt
00:06:28]} 23. Qxc4 {[%clk 00:59:01]} {[%emt 00:00:21]} Rc8 {[%clk 00:36:25]}
{[%emt 00:00:39]} 24. Nc5 {[%clk 00:53:26]} {[%emt 00:06:04]} Qe7 {[%clk
00:34:25]} {[%emt 00:02:30]} 25. Qd5 {[%clk 00:52:10]} {[%emt 00:01:45]} Rc6
{[%clk 00:30:13]} {[%emt 00:04:44]} 26. Na4 {[%clk 00:50:54]} {[%emt 00:01:44]}
Bf8 {[%clk 00:29:05]} {[%emt 00:01:39]} 27. Be3 {[%clk 00:43:40]} {[%emt
00:07:44]} Kg7 {[%clk 00:27:56]} {[%emt 00:01:40]} 28. Kh1 {[%clk 00:39:29]}
{[%emt 00:04:41]} f5 {[%clk 00:27:03]} {[%emt 00:01:23]} 29. Rd1 {[%clk
00:34:36]} {[%emt 00:05:23]} f4 {[%clk 00:25:19]} {[%emt 00:02:13]} 30. Bf2
{[%clk 00:34:07]} {[%emt 00:00:57]} Qxa3 {[%clk 00:20:15]} {[%emt 00:05:37]} 31.
Qxe5+ {[%clk 00:33:54]} {[%emt 00:00:41]} Kg8 {[%clk 00:19:36]} {[%emt
00:01:10]} 32. Bd4 {[%clk 00:28:19]} {[%emt 00:06:05]} Qxa4 {[%clk 00:11:45]}
{[%emt 00:08:22]} 33. Qd5+ {[%clk 00:28:31]} {[%emt 00:00:14]} 1-0

[Event "32nd NATO Chess Championship"]
[Site "Tartu, Estonia"]
[Date "2022.06.28"]
[Round "3.40"]
[White "Ross, David C"]
[Black "Korge, Kersti"]
[Result "1/2-1/2"]
[TimeControl "90 min + 30 sec increment from move one"]
[WhiteFideId "417572"]
[BlackFideId "4502310"]
[WhiteElo "1677"]
[BlackElo "1864"]

1. e4 {[%clk 01:30:55]} {[%emt 00:00:04]} c5 {[%clk 01:30:54]} {[%emt
00:00:06]} 2. Nc3 {[%clk 01:30:56]} {[%emt 00:00:30]} Nc6 {[%clk 01:31:10]}
{[%emt 00:00:13]} 3. g3 {[%clk 01:31:09]} {[%emt 00:00:16]} g6 {[%clk
01:31:25]} 4. Bg2 {[%clk 01:31:21]} {[%emt 00:00:33]} Bg7 {[%clk 01:31:28]} 5.
d3 {[%clk 01:31:41]} {[%emt 00:00:37]} d6 {[%emt 00:02:38]} 6. Be3 {[%emt
00:00:15]} Nf6 {[%clk 01:30:24]} {[%emt 00:00:08]} 7. h3 {[%clk 01:31:21]}
{[%emt 00:00:23]} O-O {[%clk 01:30:40]} {[%emt 00:00:15]} 8. Qd2 {[%clk
01:31:00]} {[%emt 00:00:50]} Qb6 {[%clk 01:28:58]} {[%emt 00:02:12]} 9. Rb1
{[%clk 01:27:02]} {[%emt 00:04:29]} Be6 {[%clk 01:25:15]} {[%emt 00:04:13]} 10.
Bh6 {[%clk 01:22:48]} {[%emt 00:04:44]} Nd4 {[%clk 01:24:58]} {[%emt 00:00:46]}
11. Bxg7 {[%clk 01:21:46]} {[%emt 00:01:32]} Kxg7 {[%clk 01:25:23]} 12. b3
{[%clk 01:21:46]} Qb4 {[%clk 01:25:23]} 13. Nf3 {[%clk 01:21:46]} d5 {[%clk
01:25:23]} 14. Nxd4 {[%clk 01:21:46]} Qxd4 {[%clk 01:25:23]} 15. Ne2 {[%clk
01:21:46]} Qe5 {[%clk 01:25:23]} 16. f4 {[%clk 01:21:46]} Qc7 {[%clk 01:25:23]}
17. e5 {[%clk 01:04:28]} {[%emt 00:33:25]} Nd7 {[%clk 01:14:45]} 18. O-O {[%clk
01:01:32]} {[%emt 00:04:01]} h5 {[%emt 00:05:31]} 19. f5 {[%clk 00:56:17]}
{[%emt 00:03:17]} Bxf5 {[%clk 01:12:23]} {[%emt 00:00:20]} 20. Rxf5 {[%emt
00:02:43]} gxf5 {[%emt 00:01:27]} 21. Qg5+ {[%clk 00:54:53]} {[%emt 00:01:53]}
Kh8 {[%clk 01:09:25]} {[%emt 00:00:19]} 22. Qxh5+ {[%clk 00:54:58]} {[%emt
00:00:24]} 1/2-1/2

[Event "32nd NATO Chess Championship"]
[Site "Tartu, Estonia"]
[Date "2022.06.28"]
[Round "3.45"]
[White "Chapman, Chas"]
[Black "Ivsek, Cveto"]
[Result "0-1"]
[TimeControl "90 min + 30 sec increment from move one"]
[WhiteFideId "443468"]
[BlackFideId "14608405"]
[WhiteElo "1646"]
[BlackElo "1766"]

1. e4 {[%clk 01:30:38]} {[%emt 00:00:20]} c5 {[%clk 01:30:45]} {[%emt
00:00:15]} 2. Nf3 {[%clk 01:30:45]} {[%emt 00:00:24]} e6 {[%clk 01:30:26]}
{[%emt 00:00:48]} 3. d4 {[%clk 01:30:20]} {[%emt 00:00:56]} cxd4 {[%clk
01:30:06]} {[%emt 00:00:51]} 4. Nxd4 {[%clk 01:30:33]} {[%emt 00:00:16]} a6
{[%clk 01:25:46]} {[%emt 00:04:50]} 5. Be3 {[%clk 01:27:33]} {[%emt 00:03:30]}
Nc6 {[%clk 01:23:51]} {[%emt 00:02:25]} 6. a3 {[%clk 01:21:41]} {[%emt
00:06:23]} Nf6 {[%clk 01:22:49]} {[%emt 00:01:31]} 7. Nxc6 {[%clk 01:15:30]}
{[%emt 00:06:40]} bxc6 {[%clk 01:23:08]} {[%emt 00:00:11]} 8. Nc3 {[%clk
01:14:50]} {[%emt 00:01:11]} d5 {[%clk 01:19:49]} {[%emt 00:03:49]} 9. exd5
{[%clk 01:12:28]} {[%emt 00:02:51]} cxd5 {[%clk 01:18:08]} {[%emt 00:02:11]} 10.
Be2 {[%clk 01:10:47]} {[%emt 00:02:11]} Bd6 {[%clk 01:14:15]} {[%emt 00:04:23]}
11. O-O {[%clk 01:07:08]} {[%emt 00:04:08]} Rb8 {[%clk 01:12:58]} {[%emt
00:01:46]} 12. Rb1 {[%clk 01:03:56]} {[%emt 00:03:45]} Qc7 {[%clk 01:12:28]}
{[%emt 00:00:55]} 13. h3 {[%clk 01:01:03]} {[%emt 00:03:26]} O-O {[%clk
01:10:19]} {[%emt 00:02:40]} 14. Bd2 {[%clk 00:47:39]} {[%emt 00:13:54]} d4
{[%clk 00:52:44]} {[%emt 00:18:05]} 15. Na2 {[%clk 00:47:07]} {[%emt 00:01:02]}
e5 {[%clk 00:50:04]} {[%emt 00:03:10]} 16. Bb4 {[%clk 00:44:59]} {[%emt
00:02:38]} Bxb4 {[%clk 00:39:41]} {[%emt 00:10:53]} 17. Nxb4 {[%clk 00:45:12]}
{[%emt 00:00:16]} a5 {[%clk 00:39:43]} {[%emt 00:00:29]} 18. Nd3 {[%clk
00:42:50]} {[%emt 00:02:52]} e4 {[%clk 00:36:41]} {[%emt 00:03:31]} 19. Ne1
{[%clk 00:42:10]} {[%emt 00:01:10]} Rd8 {[%clk 00:35:48]} {[%emt 00:01:23]} 20.
b4 {[%clk 00:41:15]} {[%emt 00:01:26]} axb4 {[%clk 00:32:04]} {[%emt 00:04:15]}
21. Rxb4 {[%clk 00:39:28]} {[%emt 00:02:16]} Rxb4 {[%clk 00:32:08]} {[%emt
00:00:26]} 22. axb4 {[%clk 00:39:47]} {[%emt 00:00:11]} Qb6 {[%clk 00:31:14]}
{[%emt 00:01:22]} 23. Qb1 {[%clk 00:39:16]} {[%emt 00:01:02]} Nd5 {[%clk
00:29:21]} {[%emt 00:02:23]} 24. Qb3 {[%clk 00:37:38]} {[%emt 00:02:07]} Qxb4
{[%clk 00:27:41]} {[%emt 00:02:12]} 25. Bc4 {[%clk 00:36:34]} {[%emt 00:01:34]}
Qxb3 {[%clk 00:27:29]} {[%emt 00:00:42]} 26. Bxb3 {[%clk 00:36:42]} {[%emt
00:00:22]} Ba6 {[%clk 00:26:20]} {[%emt 00:01:38]} 0-1

[Event "32nd NATO Chess Championship"]
[Site "Tartu, Estonia"]
[Date "2022.06.29"]
[Round "4.1"]
[White "Stein, Robert"]
[Black "Wang, Eigen"]
[Result "1/2-1/2"]
[TimeControl "90 min + 30 sec increment from move one"]
[WhiteTitle "FM"]
[WhiteFideId "12921084"]
[BlackFideId "2008777"]
[WhiteElo "2365"]
[BlackElo "2293"]

1. d4 {[%clk 01:30:55]} {[%emt 00:00:04]} Nf6 {[%clk 01:30:33]} {[%emt
00:00:28]} 2. c4 {[%clk 01:31:02]} {[%emt 00:00:23]} g6 {[%clk 01:30:32]}
{[%emt 00:00:30]} 3. Nc3 {[%clk 01:28:56]} {[%emt 00:02:35]} Bg7 {[%clk
01:30:51]} {[%emt 00:00:12]} 4. e4 {[%clk 01:28:44]} {[%emt 00:00:42]} d6
{[%clk 01:30:48]} {[%emt 00:00:33]} 5. Nf3 {[%clk 01:28:41]} {[%emt 00:00:33]}
O-O {[%clk 01:31:08]} {[%emt 00:00:10]} 6. Be2 {[%clk 01:29:05]} {[%emt
00:00:05]} c5 {[%clk 01:28:48]} {[%emt 00:02:51]} 7. O-O {[%clk 01:22:58]}
{[%emt 00:06:36]} cxd4 {[%clk 01:26:35]} {[%emt 00:02:43]} 8. Nxd4 {[%clk
01:23:16]} {[%emt 00:00:13]} Nc6 {[%clk 01:26:57]} {[%emt 00:00:07]} 9. Be3
{[%clk 01:23:26]} {[%emt 00:00:20]} Nxd4 {[%clk 01:26:06]} {[%emt 00:01:22]} 10.
Bxd4 {[%clk 01:23:47]} {[%emt 00:00:08]} Bd7 {[%clk 01:25:58]} {[%emt
00:00:39]} 11. f3 {[%clk 01:06:54]} {[%emt 00:17:24]} Bc6 {[%clk 01:20:56]}
{[%emt 00:05:31]} 12. Kh1 {[%clk 01:05:51]} {[%emt 00:01:32]} Nd7 {[%clk
01:15:15]} {[%emt 00:06:12]} 13. Bxg7 {[%clk 01:05:53]} {[%emt 00:00:28]} Kxg7
{[%clk 01:15:39]} {[%emt 00:00:05]} 14. Qd4+ {[%clk 01:05:45]} {[%emt
00:00:37]} Kg8 {[%clk 01:16:03]} {[%emt 00:00:07]} 15. Nd5 {[%clk 01:02:04]}
{[%emt 00:04:12]} e5 {[%clk 01:09:58]} {[%emt 00:06:34]} 16. Qd2 {[%clk
01:01:08]} {[%emt 00:01:27]} Bxd5 {[%clk 01:10:00]} {[%emt 00:00:29]} 17. exd5
{[%clk 01:00:00]} {[%emt 00:01:37]} a5 {[%clk 01:07:41]} {[%emt 00:02:49]} 18.
b3 {[%clk 00:59:13]} {[%emt 00:01:17]} Qb6 {[%clk 01:04:08]} {[%emt 00:04:02]}
19. Rab1 {[%clk 00:54:34]} {[%emt 00:05:09]} Nf6 {[%clk 00:57:06]} {[%emt
00:07:33]} 20. a3 {[%clk 00:50:32]} {[%emt 00:04:31]} Nh5 {[%clk 00:54:43]}
{[%emt 00:02:53]} 21. Rfc1 {[%clk 00:43:33]} {[%emt 00:07:29]} Qf2 {[%clk
00:49:43]} {[%emt 00:05:30]} 22. Rb2 {[%clk 00:40:42]} {[%emt 00:03:20]} Rfe8
{[%clk 00:41:23]} {[%emt 00:08:51]} 23. b4 {[%clk 00:32:24]} {[%emt 00:08:48]}
axb4 {[%clk 00:39:01]} {[%emt 00:02:52]} 24. axb4 {[%clk 00:32:41]} {[%emt
00:00:13]} b6 {[%clk 00:34:25]} {[%emt 00:05:06]} 25. c5 {[%clk 00:18:13]}
{[%emt 00:14:58]} bxc5 {[%clk 00:31:32]} {[%emt 00:03:23]} 26. Bb5 {[%clk
00:14:22]} {[%emt 00:04:21]} Qxd2 {[%clk 00:30:45]} {[%emt 00:01:16]} 27. Rxd2
{[%clk 00:14:48]} {[%emt 00:00:04]} Rec8 {[%clk 00:30:19]} {[%emt 00:00:56]} 28.
Rdc2 {[%clk 00:13:22]} {[%emt 00:01:56]} Rab8 {[%clk 00:20:24]} {[%emt
00:10:25]} 29. Ba6 {[%clk 00:13:38]} {[%emt 00:00:15]} Rd8 {[%clk 00:17:53]}
{[%emt 00:03:01]} 30. bxc5 {[%clk 00:13:48]} {[%emt 00:00:20]} dxc5 {[%clk
00:18:17]} {[%emt 00:00:05]} 31. Rxc5 {[%clk 00:14:12]} {[%emt 00:00:06]} Nf6
{[%clk 00:16:33]} {[%emt 00:02:14]} 32. Bc4 {[%clk 00:13:39]} {[%emt 00:01:03]}
Rbc8 {[%clk 00:14:35]} {[%emt 00:02:27]} 33. Rc6 {[%clk 00:07:43]} {[%emt
00:06:27]} Kg7 {[%clk 00:14:24]} {[%emt 00:00:41]} 34. Kg1 {[%clk 00:07:26]}
{[%emt 00:00:47]} Ng8 {[%clk 00:13:07]} {[%emt 00:01:48]} 35. Ba6 {[%clk
00:06:07]} {[%emt 00:01:49]} Rb8 {[%clk 00:13:08]} {[%emt 00:00:29]} 36. d6
{[%clk 00:05:25]} {[%emt 00:01:11]} Rb2 {[%clk 00:12:37]} {[%emt 00:01:01]} 37.
Rd1 {[%clk 00:05:44]} {[%emt 00:00:12]} Nf6 {[%clk 00:07:46]} {[%emt 00:05:20]}
38. Bc4 {[%clk 00:03:21]} {[%emt 00:02:53]} Rb7 {[%clk 00:04:55]} {[%emt
00:03:22]} 39. Ba6 {[%clk 00:02:54]} {[%emt 00:00:57]} Rb4 {[%clk 00:03:50]}
{[%emt 00:01:35]} 40. Rc8 {[%clk 00:01:52]} {[%emt 00:01:31]} Rd7 {[%clk
00:03:29]} {[%emt 00:00:51]} 41. Rc7 {[%clk 00:01:19]} {[%emt 00:01:04]} Rd4
{[%clk 00:02:30]} {[%emt 00:01:28]} 42. Rxd4 {[%clk 00:01:25]} {[%emt
00:00:24]} exd4 {[%clk 00:02:56]} {[%emt 00:00:04]} 43. Rxd7 {[%clk 00:01:43]}
{[%emt 00:00:13]} Nxd7 {[%clk 00:03:23]} {[%emt 00:00:03]} 44. Bb5 {[%clk
00:02:01]} {[%emt 00:00:12]} Nc5 {[%clk 00:03:32]} {[%emt 00:00:20]} 45. d7
{[%clk 00:01:46]} {[%emt 00:00:46]} Nb7 {[%clk 00:03:33]} {[%emt 00:00:27]} 46.
Kf2 {[%clk 00:01:37]} {[%emt 00:00:39]} Kf8 {[%clk 00:03:51]} {[%emt 00:00:13]}
47. Ba6 {[%clk 00:00:39]} {[%emt 00:01:28]} Nd8 {[%clk 00:04:15]} {[%emt
00:00:07]} 48. Ke2 {[%clk 00:01:01]} {[%emt 00:00:07]} Ke7 {[%clk 00:04:39]}
{[%emt 00:00:06]} 49. Bb5 {[%clk 00:01:13]} {[%emt 00:00:18]} Ne6 {[%clk
00:04:23]} {[%emt 00:00:47]} 50. g3 {[%clk 00:01:32]} {[%emt 00:00:10]} 1/2-1/2